fUSD/lending_fUSD_20250521
["ID","MTS","AMOUNT","RATE_DAILY","PERIOD"]
[361842689,1747829403517,-2468.0,0.00042465,120]
[361842690,1747829403546,-2468.0,0.00042465,120]
[361842691,1747829403575,-2468.0,0.00042465,120]
[361842692,1747829403603,-2468.0,0.00042465,120]
[361842693,1747829403630,-2468.0,0.00042465,120]
[361842694,1747829403657,-1053.53674911,0.00042465,120]
[361842695,1747829403684,-2146.17256131,0.00042465,120]
[361842696,1747829403710,-2128.08,0.00042465,120]
[361842697,1747829403745,-1968.24,0.00042465,120]
[361842698,1747829403775,-1889.43,0.00042465,120]
[361842699,1747829403803,-1659.81,0.00042465,120]
[361842700,1747829403830,-1548.88,0.00042465,120]
[361842701,1747829403857,-1617.69,0.00042465,120]
[361842702,1747829403883,-1550.29,0.00042465,120]
[361842703,1747829403910,-5000.0,0.0004248,120]
[361842704,1747829403936,-151.307,0.00042483,120]
[361842705,1747829403964,-151.308,0.00042483,120]
[361842706,1747829403990,-151.308,0.00042483,120]
[361842707,1747829404019,-151.308,0.00042483,120]
[361842708,1747829404049,-5000.0,0.00042484,120]
[361842709,1747829404081,-150.0,0.00042486,2]
[361842710,1747829404108,-150.0,0.00042486,120]
[361842711,1747829404136,-523.25624916,0.000425,60]
[361842712,1747829404163,-2000.0,0.000425,120]
[361842713,1747829404191,-2000.0,0.000425,21]
[361842714,1747829404226,-156.33,0.000425,33]
[361842715,1747829404256,-1792.0,0.000425,120]
[361842716,1747829404288,-170.29580725,0.000425,120]
[361842717,1747829404316,-4000.0,0.000425,120]
[361842718,1747829404345,-150.0,0.00042509,120]
[361842719,1747829404372,-500.0,0.0004251,60]
[361842720,1747829404399,-150.0,0.00042517,2]
[361842721,1747829404427,-150.0,0.00042534,14]
[361842722,1747829404458,-150.0,0.00042543,2]
[361842723,1747829404491,-150.0,0.00042546,2]
[361842724,1747829404531,-150.0,0.00042557,2]
[361842725,1747829404733,-10945.0,0.000426,120]
[361842726,1747829404778,-350.26029,0.000426,120]
[361842727,1747829404810,-50886.08507756,0.000426,30]
[361842728,1747829404863,-2003.15052497,0.000426,110]
[361842729,1747829404899,-1617.86926031,0.000426,30]
[361842730,1747829404928,-397.80101665,0.000426,30]
[361842731,1747829404976,-1644.52665087,0.000426,33]
[361842732,1747829405004,-150.0,0.00042604,14]
[361842733,1747829405030,-150.0,0.00042631,2]
[361842734,1747829405057,-1000.0,0.00042649,120]
[361842735,1747829405083,-28156.37330404,0.00042649,120]
[361842736,1747829405113,-150.0,0.00042664,14]
[361842737,1747829405138,-150.0,0.00042673,10]
[361842738,1747829405167,-176.25,0.00042678,120]
[361842739,1747829405192,-2000.0,0.0004268,45]
[361842740,1747829405216,-150.0,0.00042684,30]
[361842741,1747829405242,-2000.0,0.00042697,3]
[361842742,1747829405269,-2000.0,0.00042697,3]
[361842743,1747829405295,-148141.50207742,0.000427,30]
[361842744,1747829405321,-200.0,0.000427,120]
[361842745,1747829405348,-25000.0,0.0004271,120]
[361842746,1747829405386,-150.0,0.00042736,2]
[361842747,1747829405418,-467.99,0.0004274,30]
[361842748,1747829405450,-453.23,0.0004274,30]
[361842749,1747829405480,-453.23,0.0004274,30]
[361842750,1747829405509,-453.23,0.0004274,30]
[361842751,1747829405537,-396.35,0.0004274,30]
[361842752,1747829405565,-150.3,0.0004274,30]
[361842753,1747829405593,-162.76,0.0004274,30]
[361842754,1747829405622,-450.25,0.0004274,30]
[361842755,1747829405650,-353.35,0.0004274,30]
[361842756,1747829405676,-353.35,0.0004274,30]
[361842757,1747829405704,-353.35,0.0004274,30]
[361842758,1747829405729,-353.35,0.0004274,30]
[361842759,1747829405756,-705.93,0.0004274,30]
[361842760,1747829405781,-353.35,0.0004274,30]
[361842761,1747829405806,-353.35,0.0004274,30]
[361842762,1747829405832,-413.69,0.0004274,30]
[361842763,1747829405858,-150.0,0.0004274,30]
[361842764,1747829405884,-336.0,0.0004274,120]
[361842765,1747829405909,-336.0,0.0004275,120]
[361842766,1747829405940,-336.0,0.0004276,120]
[361842767,1747829405967,-161.0,0.0004277,120]
[361842768,1747829405995,-771.0,0.0004277,120]
[361842769,1747829406023,-563.0,0.0004277,120]
[361842771,1747829406050,-1262.0,0.0004277,120]
[361842772,1747829406076,-97915.6710242,0.00042771,2]
[361842773,1747829406103,-11101.9683801,0.00042771,2]
[361842774,1747829406130,-2923.2073245,0.00042771,2]
[361842775,1747829406157,-46450.3150221,0.00042771,2]
[361842776,1747829406184,-3514.9583915,0.00042771,2]
[361842777,1747829406210,-150.0,0.00042772,2]
[361842778,1747829406235,-150.0,0.00042772,14]
[361842779,1747829406263,-161.0,0.0004278,120]
[361842780,1747829406290,-771.0,0.0004278,120]
[361842781,1747829406317,-563.0,0.0004278,120]
[361842782,1747829406343,-1262.0,0.0004278,120]
[361842783,1747829406368,-7017.10489496,0.00042784,60]
[361842784,1747829406396,-6460.37651114,0.00042784,60]
[361842785,1747829406425,-150.0,0.00042785,2]
[361842786,1747829406453,-150.0,0.00042789,14]
[361842787,1747829406488,-161.0,0.0004279,120]
[361842788,1747829406516,-771.0,0.0004279,120]
[361842789,1747829406543,-563.0,0.0004279,120]
[361842790,1747829406570,-1262.0,0.0004279,120]
[361842791,1747829406597,-1000.0,0.00042798,14]
[361842792,1747829406623,-2703.71523416,0.000428,7]
[361842793,1747829406651,-2773.50363536,0.000428,120]
[361842794,1747829406676,-1628978.89286791,0.000428,120]
[361842810,1747829431856,-151.02,0.00038198,2]
[361842811,1747829431867,-151.0,0.00038198,2]
[361842812,1747829431878,-151.1,0.00038198,2]
[361842813,1747829431888,-151.0,0.00040803,2]
[361842814,1747829431898,-677.81493,0.00041501,4]
[361842815,1747829431908,-1020.61744842,0.00041944,5]
[361842816,1747829431918,-1010.33476055,0.00041944,5]
[361842817,1747829431928,-1272.17,0.00041951,5]
[361842818,1747829431938,-2189.20199258,0.00042067,15]
[361842819,1747829431948,-200.0,0.0004208,117]
[361842820,1747829431957,-2189.20199258,0.00042093,15]
[361842821,1747829431968,-1560.69994887,0.00042118,15]
[361842822,1747829431980,-628.50204371,0.00042118,15]
[361842823,1747829431991,-200.0,0.00042124,117]
[361842824,1747829432002,-300.0,0.00042179,5]
[361842825,1747829432012,-154.35,0.00042208,2]
[361842826,1747829432022,-154.35,0.00042208,2]
[361842827,1747829432034,-154.35,0.00042208,2]
[361842828,1747829432044,-154.35,0.00042208,2]
[361842829,1747829432054,-154.35,0.00042208,2]
[361842830,1747829432064,-154.35,0.00042208,2]
[361842831,1747829432073,-154.35,0.00042208,2]
[361842832,1747829432083,-154.35,0.00042208,2]
[361842833,1747829432092,-154.35,0.00042208,2]
[361842834,1747829432103,-151.0,0.00042218,14]
[361842835,1747829432113,-675.681297,0.00042218,14]
[361842836,1747829432123,-491.39949589,0.00042218,14]
[361842837,1747829432135,-184.28180111,0.00042218,14]
[361842838,1747829432145,-675.681297,0.00042218,14]
[361842839,1747829432155,-675.681297,0.00042218,14]
[361842840,1747829432165,-151.0,0.00042218,14]
[361842841,1747829432175,-151.0,0.00042218,14]
[361842842,1747829432185,-8310.37321293,0.00042218,2]
[361842843,1747829432197,-962.8861052,0.00042218,2]
[361842844,1747829432208,-4107.86655125,0.00042218,2]
[361842851,1747829437779,-151.0,0.00039649,2]
[361842852,1747829437789,-355.0,0.00042218,2]
[361842853,1747829437806,-1555.48249381,0.00042218,2]
[361842854,1747829437866,-21302.0,0.00042218,2]
[361842938,1747829439905,-106490.00000003,0.00042218,2]
[361842939,1747829439968,-42911.34190243,0.00042218,2]
[361842940,1747829440011,-1756.9338387,0.00042218,2]
[361842941,1747829440119,-2663.0,0.00042218,2]
[361842969,1747829450083,-465.70953691,0.00042218,2]
[361842970,1747829450112,-345.21280885,0.00042218,2]
[361842971,1747829450122,-489.0,0.00042218,7]
[361842972,1747829450133,-1246.98,0.00042218,5]
[361842973,1747829450143,-375.17858663,0.00042218,2]
[361842974,1747829450152,-391.7168821,0.00042218,2]
[361842975,1747829450163,-563.97028791,0.00042218,5]
[361842976,1747829450172,-289.16068451,0.00042218,2]
[361842977,1747829450183,-2141.06811418,0.00042218,2]
[361842978,1747829450194,-10484.12872505,0.00042218,2]
[361842979,1747829450206,-281.5559828,0.00042218,2]
[361842980,1747829450218,-1520.06999999,0.00042218,2]
[361842981,1747829450229,-435.30902262,0.00042218,2]
[361842982,1747829450242,-106363.77466808,0.00042218,2]
[361842984,1747830002780,200.0,0.00023089,117]
[361842985,1747830121938,200.0,0.00023089,117]
[361842986,1747830243181,200.0,0.00021262,117]
[361843004,1747830631829,-150.35,0.00013699,2]
[361843005,1747830631839,-488.8324732,0.0002,2]
[361843006,1747830631849,-200.0,0.00020253,2]
[361843007,1747830631862,-200.0,0.00020858,2]
[361843008,1747830631872,-19.26246345,0.0002271,2]
[361843009,1747830631884,-180.73753655,0.0002271,2]
[361843010,1747830631895,-393.27558148,0.00024,5]
[361843011,1747830631939,-641.680795,0.00024,5]
[361843012,1747830631951,-704.1835659,0.00024,5]
[361843013,1747830631962,-310.31,0.00024,5]
[361843014,1747830631974,-498.40740433,0.00024,5]
[361843015,1747830632000,-438.25924277,0.00024,5]
[361843016,1747830632017,-460.75959115,0.00024,5]
[361843017,1747830632029,-1115.4544,0.00024,5]
[361843018,1747830632062,-426.36644233,0.00024,5]
[361843019,1747830632105,-3.15339848,0.00024,5]
[361843341,1747830637798,-8.15084644,0.00024,5]
[361843342,1747830637811,-200.0,0.00027093,2]
[361843343,1747830637822,-133.80915351,0.000279,18]
[361843344,1747830637834,-98.12277191,0.000279,18]
[361843345,1747830637844,-1200.0,0.00029847,2]
[361843346,1747830637855,-1643.375584,0.00029848,2]
[361843347,1747830637864,-300.0,0.00029999,2]
[361843348,1747830637875,-244.27696276,0.0003,5]
[361843349,1747830637887,-2938.90603946,0.0003,5]
[361843350,1747830637902,-508.44,0.0003,5]
[361843351,1747830637915,-1756.27846413,0.0003,5]
[361843352,1747830637927,-18892.44641559,0.0003,5]
[361843353,1747830637939,-1785.24010098,0.0003,5]
[361843354,1747830637952,-461.94979684,0.0003,5]
[361843362,1747830640148,-736.55,0.0003,5]
[361843363,1747830640259,-253.82499998,0.0003,5]
[361843413,1747830642910,-2258.01447806,0.0003,5]
[361843424,1747830645884,-5344.668,0.0003,5]
[361843425,1747830646106,-25978.23754915,0.0003,5]
[361843426,1747830646117,-167.09,0.00032501,2]
[361843427,1747830646132,-207.49295383,0.00032775,2]
[361843428,1747830646142,-544.01,0.00032876,5]
[361843429,1747830646152,-420.0,0.00032876,5]
[361843430,1747830646163,-452.8,0.00032876,5]
[361843431,1747830646173,-400.0,0.00032876,5]
[361843432,1747830646183,-420.0,0.00032876,5]
[361843433,1747830646194,-404.13617223,0.00032876,5]
[361843434,1747830646204,-420.0,0.00032876,5]
[361843435,1747830646214,-400.0,0.00032876,5]
[361843436,1747830646224,-420.0,0.00032876,5]
[361843437,1747830646234,-420.0,0.00032876,5]
[361843438,1747830646243,-299.16695738,0.00032876,5]
[361843439,1747830646253,-420.0,0.00032876,5]
[361843440,1747830646262,-420.0,0.00032876,5]
[361843441,1747830646272,-36344.9830069,0.00032876,5]
[361843442,1747830646288,-7195.1269931,0.00032876,5]
[361843443,1747830646298,-420.0,0.00032876,5]
[361843444,1747830646307,-420.0,0.00032876,5]
[361843445,1747830646317,-509.58156655,0.00032876,5]
[361843446,1747830646327,-420.0,0.00032876,5]
[361843447,1747830646338,-420.0,0.00032876,5]
[361843448,1747830646348,-1066.35,0.00032876,5]
[361843449,1747830646358,-420.0,0.00032876,5]
[361843450,1747830646368,-420.0,0.00032876,5]
[361843451,1747830646384,-500.0,0.0003292,2]
[361843452,1747830646394,-518.62,0.0003315,5]
[361843453,1747830646404,-420.0,0.0003315,5]
[361843454,1747830646414,-34733.93434689,0.0003315,5]
[361843455,1747830646426,-532.55,0.0003315,5]
[361843456,1747830646439,-770.66223467,0.0003315,5]
[361843457,1747830646451,-375.96719999,0.0003315,5]
[361843458,1747830646463,-3158.22811922,0.0003315,5]
[361843461,1747830758811,150.0,0.00014,5]
[361843465,1747831082689,200.0,0.0002299,117]
[361843468,1747831122856,-150.35,0.00013699,2]
[361843469,1747831190375,3055.29798437,0.0002739,120]
[361843470,1747831343471,-200.0,0.00020613,2]
[361843471,1747831343495,-58.53432232,0.00020904,2]
[361843472,1747831348948,-141.46567768,0.00020904,2]
[361843474,1747831769107,-150.46387583,0.00022871,2]
[361843481,1747831832092,-200.0,0.0002297,2]
[361843482,1747831832105,-7327.293802,0.00023068,2]
[361843483,1747831832117,-200.0,0.00023982,2]
[361843484,1747831832128,-1357.012805,0.00024164,2]
[361843485,1747831832140,-194.37,0.00024286,2]
[361843486,1747831832152,-213.79446896,0.000249,12]
[361843487,1747831832164,-1155.52892404,0.0002494,2]
[361843488,1747831832179,-44.47107596,0.0002494,2]
[361843489,1747831832195,-300.0,0.00024941,2]
[361843490,1747831832208,-200.0,0.00024942,2]
[361843491,1747831832221,-200.0,0.00024942,2]
[361843492,1747831832240,-200.0,0.00025159,2]
[361843493,1747831832252,-123.39572404,0.00026983,16]
[361843494,1747831832302,-90.39874488,0.00026983,16]
[361843495,1747831832315,-253.39681435,0.00027021,2]
[361843496,1747831832331,-46.60318565,0.00027021,2]
[361843497,1747831832343,-1680.0,0.00027142,2]
[361843498,1747831832358,-213.79446892,0.00029067,20]
[361843499,1747831832379,-623.77,0.00029309,2]
[361843500,1747831832391,-1631.0,0.00029539,2]
[361843501,1747831832403,-397.77601132,0.00030221,2]
[361843502,1747831832416,-1449.84,0.00030497,2]
[361843504,1747831832429,-810.56,0.00030571,2]
[361843507,1747831832443,-4000.0,0.00030606,2]
[361843510,1747831832456,-200.0,0.00030624,2]
[361843512,1747831832468,-150.0,0.0003068,7]
[361843515,1747831832479,-845.85,0.00030689,2]
[361843517,1747831832491,-255.55,0.00030702,2]
[361843519,1747831832502,-255.55,0.0003071,2]
[361843522,1747831832512,-255.55,0.00030718,2]
[361843524,1747831832524,-255.55,0.00030726,2]
[361843526,1747831832534,-255.55,0.00030734,2]
[361843528,1747831832545,-255.55,0.00030742,2]
[361843530,1747831832555,-255.55,0.00030751,2]
[361843532,1747831832567,-255.55,0.00030759,2]
[361843534,1747831832578,-255.55,0.00030767,2]
[361843536,1747831832590,-255.55,0.00030775,2]
[361843539,1747831832603,-255.55,0.00030783,2]
[361843541,1747831832614,-255.55,0.00030791,2]
[361843543,1747831832626,-255.55,0.00030799,2]
[361843546,1747831832638,-255.55,0.00030807,2]
[361843548,1747831832654,-255.55,0.00030815,2]
[361843550,1747831832666,-255.55,0.00030823,2]
[361843552,1747831832677,-255.55,0.00030831,2]
[361843554,1747831832688,-255.55,0.00030839,2]
[361843556,1747831832700,-255.55,0.00030848,2]
[361843558,1747831832711,-255.55,0.00030856,2]
[361843561,1747831832722,-213.79446892,0.0003115,24]
[361843563,1747831832733,-159.08,0.00031282,2]
[361843565,1747831832745,-661.88,0.00031364,120]
[361843567,1747831832757,-153.91,0.00031517,2]
[361843569,1747831832768,-547.08,0.00031563,2]
[361843571,1747831832779,-623.77,0.00031573,2]
[361843574,1747831832791,-150.0,0.00031684,2]
[361843576,1747831832802,-405.0,0.00031684,2]
[361843578,1747831832813,-12418.15,0.00031848,2]
[361843580,1747831832824,-182.95,0.00031968,2]
[361843582,1747831832835,-1000.0,0.00032,120]
[361843584,1747831832846,-208.0,0.00032037,2]
[361843587,1747831832858,-152.0,0.00032086,2]
[361843589,1747831832869,-1312.24,0.00032086,2]
[361843591,1747831832879,-2751.0,0.0003215,120]
[361843593,1747831832891,-10375.12,0.00032171,2]
[361843595,1747831832901,-200.0,0.0003224,2]
[361843597,1747831832912,-550.98,0.00032281,31]
[361843599,1747831832923,-864.76119748,0.00032419,2]
[361843601,1747831832935,-150.0,0.00032473,2]
[361843604,1747831832947,-250.0,0.00032621,2]
[361843606,1747831832958,-864.76119748,0.00032643,2]
[361843608,1747831832969,-1000.0,0.00032654,2]
[361843610,1747831832980,-258.2,0.00032776,2]
[361843613,1747831832993,-587.6822185,0.00032776,29]
[361843615,1747831833004,-3250.17027408,0.00032866,3]
[361843617,1747831833015,-273.83589275,0.00032875,2]
[361843619,1747831833028,-186109.74322459,0.00032876,2]
[361843622,1747831833043,-1124.67584836,0.00032876,2]
[361843624,1747831833055,-401.79058086,0.00032876,5]
[361843628,1747831833080,-206.60845682,0.00032876,5]
[361843630,1747831833094,-400.0,0.00032876,5]
[361843632,1747831833107,-400.0,0.00032876,5]
[361843635,1747831833121,-420.0,0.00032876,5]
[361843637,1747831833133,-420.0,0.00032876,5]
[361843639,1747831833146,-400.0,0.00032876,5]
[361843641,1747831833159,-400.0,0.00032876,5]
[361843644,1747831833171,-420.0,0.00032876,5]
[361843646,1747831833187,-420.0,0.00032876,5]
[361843648,1747831833199,-472.13,0.00032876,5]
[361843650,1747831833212,-420.0,0.00032876,5]
[361843653,1747831833225,-380.0,0.00032876,5]
[361843655,1747831833239,-380.0,0.00032876,5]
[361843657,1747831833251,-480.77,0.00032876,5]
[361843660,1747831833266,-420.0,0.00032876,120]
[361843662,1747831833276,-420.0,0.00032876,5]
[361843664,1747831833288,-329.28411632,0.00032876,5]
[361843666,1747831833300,-345.73,0.00032876,5]
[361843668,1747831833313,-398.13618728,0.00032876,5]
[361843681,1747831837945,-21.86381272,0.00032876,5]
[361843682,1747831837956,-420.0,0.00032876,5]
[361843683,1747831837967,-150.0,0.00032876,5]
[361843684,1747831837977,-150.0,0.00032876,5]
[361843685,1747831837987,-165.75530728,0.00032876,5]
[361843686,1747831838160,-254.24469272,0.00032876,5]
[361843687,1747831838171,-420.0,0.00032876,5]
[361843688,1747831838184,-354.98276607,0.00032876,5]
[361843689,1747831838199,-65.01723393,0.00032876,5]
[361843690,1747831838209,-420.0,0.00032876,5]
[361843691,1747831838220,-380.0,0.00032876,5]
[361843692,1747831838231,-420.0,0.00032876,5]
[361843693,1747831838242,-165.02,0.00032876,5]
[361843694,1747831838252,-420.0,0.00032876,5]
[361843695,1747831838265,-181.52,0.00032876,5]
[361843697,1747831838276,-420.0,0.00032876,5]
[361843698,1747831838286,-62.6709629,0.00032876,5]
[361843703,1747831840292,-357.3290371,0.00032876,5]
[361843704,1747831840304,-380.0,0.00032876,5]
[361843705,1747831840315,-380.0,0.00032876,5]
[361843706,1747831840326,-420.0,0.00032876,5]
[361843707,1747831840337,-420.0,0.00032876,5]
[361843708,1747831840347,-420.0,0.00032876,5]
[361843709,1747831840359,-420.0,0.00032876,5]
[361843710,1747831840370,-420.0,0.00032876,5]
[361843711,1747831840380,-448.71,0.00032876,5]
[361843712,1747831840391,-420.0,0.00032876,5]
[361843713,1747831840402,-420.0,0.00032876,5]
[361843714,1747831840413,-380.0,0.00032876,5]
[361843715,1747831840423,-400.0,0.00032876,5]
[361843716,1747831840434,-420.0,0.00032876,5]
[361843717,1747831840449,-499.78168774,0.00032876,5]
[361843718,1747831840460,-167.28450134,0.00032876,5]
[361843719,1747831840472,-400.0,0.00032876,5]
[361843720,1747831840483,-420.0,0.00032876,5]
[361843721,1747831840495,-420.0,0.00032876,5]
[361843722,1747831840506,-420.0,0.00032876,5]
[361843723,1747831840517,-444.12,0.00032876,5]
[361843724,1747831840528,-420.0,0.00032876,5]
[361843725,1747831840539,-380.0,0.00032876,5]
[361843726,1747831840549,-420.0,0.00032876,5]
[361843727,1747831840559,-420.0,0.00032876,5]
[361843728,1747831840569,-420.0,0.00032876,5]
[361843729,1747831840580,-420.0,0.00032876,5]
[361843730,1747831840591,-420.0,0.00032876,5]
[361843731,1747831840601,-420.0,0.00032876,5]
[361843732,1747831840611,-420.0,0.00032876,5]
[361843733,1747831840622,-522.29,0.00032876,5]
[361843734,1747831840634,-345.03664383,0.00032876,5]
[361843736,1747831840648,-74.96335617,0.00032876,5]
[361843739,1747831840658,-420.0,0.00032876,5]
[361843741,1747831840669,-311.46560286,0.00032876,5]
[361843742,1747831840683,-108.53439714,0.00032876,5]
[361843743,1747831840697,-400.0,0.00032876,5]
[361843744,1747831840708,-420.0,0.00032876,5]
[361843745,1747831840719,-494.1,0.00032876,5]
[361843746,1747831840730,-420.0,0.00032876,5]
[361843747,1747831840741,-467.53,0.00032876,5]
[361843748,1747831840752,-420.0,0.00032876,5]
[361843749,1747831840763,-379.52101084,0.00032876,5]
[361843750,1747831840774,-420.0,0.00032876,5]
[361843751,1747831840786,-442.85,0.00032876,5]
[361843752,1747831840797,-400.0,0.00032876,5]
[361843753,1747831840808,-385.15820895,0.00032876,5]
[361843754,1747831840819,-504.11,0.00032876,5]
[361843755,1747831840830,-420.0,0.00032876,5]
[361843756,1747831840841,-420.0,0.00032876,5]
[361843757,1747831840852,-592.7,0.00032876,5]
[361843758,1747831840863,-420.0,0.00032876,5]
[361843759,1747831840874,-250.0,0.00032876,5]
[361843760,1747831840886,-469.38,0.00032876,5]
[361843761,1747831840897,-320.0,0.00032876,5]
[361843762,1747831840907,-420.0,0.00032876,5]
[361843763,1747831840919,-400.0,0.00032876,5]
[361843764,1747831840930,-380.0,0.00032876,5]
[361843765,1747831840942,-420.0,0.00032876,5]
[361843766,1747831840953,-380.0,0.00032876,5]
[361843767,1747831840964,-420.0,0.00032876,5]
[361843768,1747831840975,-420.0,0.00032876,5]
[361843769,1747831840986,-353.2,0.00032876,5]
[361843770,1747831840997,-420.0,0.00032876,5]
[361843771,1747831841007,-428.38,0.00032876,5]
[361843772,1747831841019,-420.0,0.00032876,5]
[361843773,1747831841029,-420.0,0.00032876,5]
[361843774,1747831841040,-400.0,0.00032876,5]
[361843775,1747831841051,-420.0,0.00032876,5]
[361843776,1747831841062,-420.0,0.00032876,5]
[361843777,1747831841073,-765.05,0.00032876,5]
[361843778,1747831841085,-452.94,0.00032876,5]
[361843779,1747831841096,-234.80444016,0.00032876,5]
[361843780,1747831841107,-420.0,0.00032876,5]
[361843781,1747831841118,-400.0,0.00032876,5]
[361843782,1747831841129,-150.0,0.00032876,5]
[361843783,1747831841140,-154.58813608,0.00032876,5]
[361843784,1747831841150,-420.0,0.00032876,5]
[361843785,1747831841161,-380.0,0.00032876,5]
[361843786,1747831841172,-420.0,0.00032876,5]
[361843787,1747831841183,-420.0,0.00032876,5]
[361843788,1747831841198,-336.33,0.00032876,5]
[361843789,1747831841210,-420.0,0.00032876,5]
[361843790,1747831841221,-420.0,0.00032876,5]
[361843791,1747831841232,-420.0,0.00032876,5]
[361843792,1747831841243,-420.0,0.00032876,5]
[361843793,1747831841254,-496.04650507,0.00032876,5]
[361843794,1747831841266,-216.55,0.00032876,5]
[361843795,1747831841276,-420.0,0.00032876,5]
[361843796,1747831841287,-88.05286216,0.00032876,5]
[361843797,1747831841303,-331.94713784,0.00032876,5]
[361843798,1747831841313,-584.12286216,0.00032876,5]
[361843799,1747831841340,-1197.92713784,0.00032876,5]
[361843800,1747831841351,-179.78,0.00032876,5]
[361843801,1747831841362,-310.21,0.00032876,5]
[361843802,1747831841373,-269.47,0.00032876,5]
[361843803,1747831841384,-360.0,0.00032876,5]
[361843804,1747831841395,-462.03,0.00032876,5]
[361843805,1747831841406,-403.16142023,0.00032876,5]
[361843806,1747831841777,-420.0,0.00032876,5]
[361843807,1747831841788,-375.77,0.00032876,5]
[361843808,1747831841798,-3.38411303,0.00032876,5]
[361843809,1747831841810,-416.61588697,0.00032876,5]
[361843810,1747831841820,-219.42662443,0.00032876,5]
[361843811,1747831841831,-160.57337557,0.00032876,5]
[361843812,1747831841841,-303.46058443,0.00032876,5]
[361843909,1747831846050,-116.53941557,0.00032876,5]
[361843911,1747831846061,-287.408444,0.00032876,5]
[361843913,1747831846071,-182.29,0.00032876,5]
[361843915,1747831846082,-420.0,0.00032876,5]
[361843917,1747831846091,-198.69,0.00032876,5]
[361843919,1747831846101,-3925.57214043,0.00032876,5]
[361843921,1747831846114,-2329.55927372,0.00032876,5]
[361843923,1747831846126,-1202.93004817,0.00032876,5]
[361843932,1747831846215,-976.30608833,0.00032876,5]
[361843939,1747831846271,-3994.77402288,0.00032876,5]
[361843945,1747831846327,-831.2526789,0.00032876,5]
[361843947,1747831846340,-253.52,0.00032876,5]
[361843958,1747831846434,-623.00401619,0.00032876,5]
[361843960,1747831846447,-762.51,0.00032876,5]
[361843965,1747831846489,-384.16329,0.00032876,5]
[361844240,1747832222563,150.8,0.00013699,2]
[361844242,1747832244011,-150.8,0.00031311,2]
[361844243,1747832244036,-59.60090655,0.00032028,2]
[361844244,1747832303426,-187.33472814,0.00031991,2]
[361844248,1747833032316,-361.64914535,0.00029812,2]
[361844249,1747833032327,-200.0,0.00029847,117]
[361844250,1747833032337,-691.59,0.00029883,2]
[361844251,1747833032348,-200.0,0.0002991,117]
[361844252,1747833032568,-200.0,0.00029912,117]
[361844253,1747833032580,-161.83429546,0.0003,5]
[361844254,1747833032591,-150.0,0.00031272,2]
[361844255,1747833032601,-167.81,0.00031556,120]
[361844256,1747833032611,-165.69,0.00031578,2]
[361844257,1747833032621,-4269.16,0.00031629,2]
[361844258,1747833032631,-1200.0,0.00031635,3]
[361844259,1747833032640,-300.0,0.00031635,2]
[361844260,1747833032650,-23900.0,0.00031636,2]
[361844261,1747833032660,-4000.0,0.0003183,2]
[361844262,1747833032670,-150.0,0.00031899,2]
[361844263,1747833032679,-217.24175502,0.000319,25]
[361844264,1747833032689,-500.0,0.00031909,2]
[361844265,1747833032698,-500.0,0.00031909,2]
[361844266,1747833032708,-500.0,0.00031909,2]
[361844267,1747833032718,-500.0,0.00031909,2]
[361844268,1747833032727,-500.0,0.00031909,2]